[Event "*** Titled Tuesday 3|2 Blitz (Late)"]
[Site "Chess.com"]
[Date "2017.01.03"]
[Round "9"]
[White "MateusViageiro"]
[Black "Divertissement"]
[Result "1-0"]
[WhiteElo "2333"]
[BlackElo "2430"]
[TimeControl "180+2"]
[EndTime "18:52:34 PST"]
[Termination "MateusViageiro won on time"]

1. e4 {[%clk 0:03:01.9]} 1... e6 {[%clk 0:03:01.4]} 2. Qe2 {[%clk 0:03:02]} 2...
c5 {[%clk 0:02:58.9]} 3. g3 {[%clk 0:03:02.8]} 3... Nc6 {[%clk 0:03:00]} 4. Nf3
{[%clk 0:03:02.7]} 4... g6 {[%clk 0:03:01.2]} 5. Bg2 {[%clk 0:03:03.4]} 5... Bg7
{[%clk 0:03:02.8]} 6. O-O {[%clk 0:03:04.4]} 6... Nge7 {[%clk 0:03:04.4]} 7. Rd1
{[%clk 0:03:05.5]} 7... O-O {[%clk 0:03:05.4]} 8. c3 {[%clk 0:03:06.7]} 8... d5
{[%clk 0:03:07]} 9. exd5 {[%clk 0:02:59.8]} 9... Nxd5 {[%clk 0:02:45.7]} 10. d4
{[%clk 0:03:00.9]} 10... cxd4 {[%clk 0:02:46.2]} 11. Nxd4 {[%clk 0:02:59.5]}
11... Nxd4 {[%clk 0:02:47.2]} 12. cxd4 {[%clk 0:03:00.4]} 12... Bd7 {[%clk
0:02:48]} 13. Nc3 {[%clk 0:03:00.3]} 13... Bc6 {[%clk 0:02:48.2]} 14. Qc4 {[%clk
0:02:49.4]} 14... Nxc3 {[%clk 0:02:43.9]} 15. bxc3 {[%clk 0:02:48.6]} 15... Bxg2
{[%clk 0:02:44.8]} 16. Kxg2 {[%clk 0:02:49]} 16... Rc8 {[%clk 0:02:46.7]} 17.
Qb3 {[%clk 0:02:49.1]} 17... Qc7 {[%clk 0:02:40]} 18. Ba3 {[%clk 0:02:41.3]}
18... Rfd8 {[%clk 0:02:40.6]} 19. Rac1 {[%clk 0:02:38.9]} 19... b6 {[%clk
0:02:41.9]} 20. Kg1 {[%clk 0:02:37.8]} 20... Qc4 {[%clk 0:02:41.9]} 21. Bb2
{[%clk 0:02:31.6]} 21... Rd5 {[%clk 0:02:41.9]} 22. Qxc4 {[%clk 0:02:28.1]}
22... Rxc4 {[%clk 0:02:42.1]} 23. Kf1 {[%clk 0:02:28.7]} 23... Ra5 {[%clk
0:02:36]} 24. Ra1 {[%clk 0:02:28.4]} 24... Rca4 {[%clk 0:02:35.5]} 25. a3 {[%clk
0:02:20.6]} 25... Bf8 {[%clk 0:02:36.2]} 26. Ra2 {[%clk 0:02:09.4]} 26... b5
{[%clk 0:02:27.4]} 27. Rda1 {[%clk 0:02:07.9]} 27... Ra6 {[%clk 0:02:10.2]} 28.
Ke2 {[%clk 0:02:08.2]} 28... f6 {[%clk 0:01:50.6]} 29. f4 {[%clk 0:02:06.9]}
29... Kf7 {[%clk 0:01:51.7]} 30. Kd3 {[%clk 0:02:08]} 30... b4 {[%clk
0:01:46.9]} 31. cxb4 {[%clk 0:02:05.1]} 31... Bxb4 {[%clk 0:01:48.8]} 32. Kc2
{[%clk 0:01:53.7]} 32... Bd6 {[%clk 0:01:42.8]} 33. Kb3 {[%clk 0:01:52.3]} 33...
R4a5 {[%clk 0:01:41.7]} 34. a4 {[%clk 0:01:47.8]} 34... Rb6+ {[%clk 0:01:39.7]}
35. Kc2 {[%clk 0:01:46.4]} 35... Rc6+ {[%clk 0:01:26.7]} 36. Kb3 {[%clk
0:01:41.9]} 36... h5 {[%clk 0:01:18.8]} 37. Bc3 {[%clk 0:01:40.5]} 37... Rf5
{[%clk 0:01:12.5]} 38. Re2 {[%clk 0:01:26.4]} 38... g5 {[%clk 0:01:11.5]} 39.
fxg5 {[%clk 0:01:26.3]} 39... Rf3 {[%clk 0:01:04.4]} 40. Rc1 {[%clk 0:01:20.2]}
40... fxg5 {[%clk 0:00:42.4]} 41. Kb2 {[%clk 0:01:17.2]} 41... h4 {[%clk
0:00:30.6]} 42. gxh4 {[%clk 0:01:17.3]} 42... gxh4 {[%clk 0:00:32.5]} 43. Rcc2
{[%clk 0:01:17.5]} 43... h3 {[%clk 0:00:31.4]} 44. Rc1 {[%clk 0:01:09.4]} 44...
Rb6+ {[%clk 0:00:12.4]} 45. Kc2 {[%clk 0:01:06.4]} 45... Ba3 {[%clk 0:00:11.5]}
46. Rd1 {[%clk 0:01:03.5]} 46... Rc6 {[%clk 0:00:06.1]} 47. Rd3 {[%clk
0:01:04.4]} 47... Rf1 {[%clk 0:00:06]} 48. Rxh3 {[%clk 0:01:01.9]} 48... Rc1+
{[%clk 0:00:04.9]} 49. Kb3 {[%clk 0:01:02]} 49... Bd6 {[%clk 0:00:03.3]} 50.
Rf2+ {[%clk 0:01:02.7]} 50... Ke8 {[%clk 0:00:02.8]} 51. Rh8+ {[%clk 0:01:02.7]}
51... Kd7 {[%clk 0:00:04.1]} 52. Rh3 {[%clk 0:01:03.3]} 52... Rb6+ {[%clk
0:00:04.4]} 53. Ka2 {[%clk 0:00:58.5]} 1-0

[Event "*** Titled Tuesday 3|2 Blitz (Late)"]
[Site "Chess.com"]
[Date "2017.01.03"]
[Round "9"]
[White "yurisolo"]
[Black "Dr-Bassem"]
[Result "0-1"]
[WhiteElo "2474"]
[BlackElo "2642"]
[TimeControl "180+2"]
[EndTime "18:53:10 PST"]
[Termination "Dr-Bassem won on time"]

1. e4 {[%clk 0:03:01.9]} 1... e5 {[%clk 0:03:00.8]} 2. Nf3 {[%clk 0:03:03.3]}
2... Nc6 {[%clk 0:03:02.4]} 3. Bb5 {[%clk 0:03:04.3]} 3... a6 {[%clk 0:03:03.2]}
4. Ba4 {[%clk 0:03:04.6]} 4... Nf6 {[%clk 0:03:04.2]} 5. O-O {[%clk 0:03:05.8]}
5... Be7 {[%clk 0:03:03]} 6. Re1 {[%clk 0:03:07.3]} 6... b5 {[%clk 0:03:03.7]}
7. Bb3 {[%clk 0:03:08.8]} 7... d6 {[%clk 0:03:05.1]} 8. c3 {[%clk 0:03:10.3]}
8... O-O {[%clk 0:03:06.1]} 9. h3 {[%clk 0:03:11.9]} 9... Nb8 {[%clk 0:03:07.2]}
10. d4 {[%clk 0:03:12.4]} 10... Nbd7 {[%clk 0:03:08.7]} 11. Nbd2 {[%clk
0:03:14]} 11... Bb7 {[%clk 0:03:10.2]} 12. Bc2 {[%clk 0:03:15.4]} 12... Re8
{[%clk 0:03:11.6]} 13. a4 {[%clk 0:03:16.9]} 13... Bf8 {[%clk 0:03:10.5]} 14.
Bd3 {[%clk 0:03:18.3]} 14... b4 {[%clk 0:03:11.2]} 15. a5 {[%clk 0:03:14.6]}
15... g6 {[%clk 0:02:44.9]} 16. d5 {[%clk 0:03:05.2]} 16... bxc3 {[%clk
0:02:42.3]} 17. bxc3 {[%clk 0:03:07.1]} 17... Nc5 {[%clk 0:02:43]} 18. Bf1
{[%clk 0:03:06.4]} 18... c6 {[%clk 0:02:44.2]} 19. c4 {[%clk 0:03:07.4]} 19...
Rc8 {[%clk 0:02:41.4]} 20. Ba3 {[%clk 0:02:58.8]} 20... Qxa5 {[%clk 0:02:36.8]}
21. Nb3 {[%clk 0:02:56.7]} 21... Nxb3 {[%clk 0:02:34]} 22. Qxb3 {[%clk
0:02:57.2]} 22... Qc7 {[%clk 0:02:34.3]} 23. Bd3 {[%clk 0:02:40.2]} 23... a5
{[%clk 0:02:24.8]} 24. Qa4 {[%clk 0:02:39.6]} 24... Ba6 {[%clk 0:02:17.8]} 25.
Bf1 {[%clk 0:02:23.6]} 25... cxd5 {[%clk 0:02:15.2]} 26. cxd5 {[%clk 0:02:24.2]}
26... Bxf1 {[%clk 0:02:16.8]} 27. Kxf1 {[%clk 0:02:25.6]} 27... Qc4+ {[%clk
0:02:16.5]} 28. Qxc4 {[%clk 0:02:25.9]} 28... Rxc4 {[%clk 0:02:18.4]} 29. Nd2
{[%clk 0:02:27.5]} 29... Rd4 {[%clk 0:02:19.3]} 30. Ra2 {[%clk 0:02:20.7]} 30...
Rc8 {[%clk 0:02:13.1]} 31. f3 {[%clk 0:02:10.4]} 31... Rc3 {[%clk 0:02:00.2]}
32. Nb1 {[%clk 0:01:58.7]} 32... Rb3 {[%clk 0:02:00]} 33. Rc1 {[%clk 0:01:59]}
33... Ra4 {[%clk 0:01:54.3]} 34. Ke2 {[%clk 0:01:48.4]} 34... Bh6 {[%clk
0:01:52.8]} 35. Rd1 {[%clk 0:01:18.8]} 35... Nd7 {[%clk 0:01:38.3]} 36. Ra1
{[%clk 0:01:19.4]} 36... Nc5 {[%clk 0:01:31.7]} 37. Kf1 {[%clk 0:00:53]} 37...
Be3 {[%clk 0:01:28.6]} 38. Ra2 {[%clk 0:00:49.4]} 38... Bd4 {[%clk 0:01:27.5]}
39. Ke2 {[%clk 0:00:50.6]} 39... Na6 {[%clk 0:01:22.9]} 40. Rc2 {[%clk 0:00:41]}
40... Rbxa3 {[%clk 0:01:17.3]} 41. Nxa3 {[%clk 0:00:42.9]} 41... Rxa3 {[%clk
0:01:19.2]} 42. Rc6 {[%clk 0:00:44.6]} 42... Nc5 {[%clk 0:00:58.7]} 43. Rxd6
{[%clk 0:00:44.6]} 43... a4 {[%clk 0:00:49.2]} 44. Rc6 {[%clk 0:00:45.8]} 44...
Rc3 {[%clk 0:00:36.1]} 45. d6 {[%clk 0:00:35.2]} 45... a3 {[%clk 0:00:28.2]} 46.
Rc8+ {[%clk 0:00:35.6]} 46... Kg7 {[%clk 0:00:27.4]} 47. Ra8 {[%clk 0:00:20.1]}
47... Kf6 {[%clk 0:00:15.8]} 48. Rd2 {[%clk 0:00:04.6]} 48... Rb3 {[%clk
0:00:09.8]} 0-1

[Event "*** Titled Tuesday 3|2 Blitz (Late)"]
[Site "Chess.com"]
[Date "2017.01.03"]
[Round "9"]
[White "VerdeNotte"]
[Black "MaestroASK"]
[Result "1-0"]
[WhiteElo "2506"]
[BlackElo "2480"]
[TimeControl "180+2"]
[EndTime "18:53:12 PST"]
[Termination "VerdeNotte won by resignation"]

1. e4 {[%clk 0:03:02]} 1... d6 {[%clk 0:02:58.5]} 2. d4 {[%clk 0:03:02.6]} 2...
g6 {[%clk 0:02:58.7]} 3. Nc3 {[%clk 0:03:03.7]} 3... c6 {[%clk 0:02:59]} 4. f4
{[%clk 0:03:04.1]} 4... d5 {[%clk 0:02:54.9]} 5. e5 {[%clk 0:03:04]} 5... h5
{[%clk 0:02:55]} 6. Nf3 {[%clk 0:03:04.5]} 6... Nh6 {[%clk 0:02:55.6]} 7. Bd3
{[%clk 0:03:02.9]} 7... Bf5 {[%clk 0:02:55.8]} 8. Bxf5 {[%clk 0:03:00.7]} 8...
Nxf5 {[%clk 0:02:56]} 9. e6 {[%clk 0:03:01.9]} 9... f6 {[%clk 0:02:54.3]} 10.
O-O {[%clk 0:03:01.1]} 10... Qd6 {[%clk 0:02:53.3]} 11. Qe2 {[%clk 0:02:53.2]}
11... Na6 {[%clk 0:02:52.9]} 12. Na4 {[%clk 0:02:43.7]} 12... Nc7 {[%clk
0:02:49.3]} 13. Re1 {[%clk 0:02:41.8]} 13... O-O-O {[%clk 0:02:32.9]} 14. Bd2
{[%clk 0:02:18.9]} 14... Ng7 {[%clk 0:02:25.3]} 15. f5 {[%clk 0:02:10.6]} 15...
gxf5 {[%clk 0:02:18.5]} 16. Nc5 {[%clk 0:01:40.8]} 16... b6 {[%clk 0:02:14.4]}
17. Na6 {[%clk 0:01:36.4]} 17... Qxe6 {[%clk 0:02:06.3]} 18. Qf1 {[%clk
0:01:28.1]} 18... Qd6 {[%clk 0:01:57.8]} 19. Nh4 {[%clk 0:01:18.2]} 19... e6
{[%clk 0:01:50.8]} 20. Bf4 {[%clk 0:01:17.3]} 20... Qxf4 {[%clk 0:01:25.7]} 21.
Qxf4 {[%clk 0:01:17.8]} 21... Nxa6 {[%clk 0:01:26.9]} 22. Ng6 {[%clk 0:01:18.6]}
22... Bd6 {[%clk 0:01:25.6]} 23. Qf1 {[%clk 0:01:19.2]} 23... Nc7 {[%clk
0:01:22.6]} 24. Nxh8 {[%clk 0:01:19.7]} 24... Rxh8 {[%clk 0:01:23.1]} 25. c4
{[%clk 0:01:20]} 25... Kd7 {[%clk 0:01:21.9]} 26. cxd5 {[%clk 0:01:20.8]} 26...
cxd5 {[%clk 0:01:20.7]} 27. Rac1 {[%clk 0:01:20.9]} 27... h4 {[%clk 0:01:18]}
28. Rc3 {[%clk 0:01:18.5]} 28... Rc8 {[%clk 0:01:07.5]} 29. Rec1 {[%clk
0:01:18.9]} 29... e5 {[%clk 0:01:02]} 30. Qe1 {[%clk 0:01:05.2]} 30... Nge6
{[%clk 0:00:57.5]} 31. dxe5 {[%clk 0:01:02]} 31... Bxe5 {[%clk 0:00:57.7]} 32.
Qxh4 {[%clk 0:01:02.9]} 32... Bxc3 {[%clk 0:00:57.4]} 33. Rxc3 {[%clk
0:01:03.5]} 33... Re8 {[%clk 0:00:54.4]} 34. Qh7+ {[%clk 0:01:01.4]} 34... Re7
{[%clk 0:00:54.6]} 35. Qxf5 {[%clk 0:01:02.4]} 35... Kd6 {[%clk 0:00:55]} 36.
Qxf6 {[%clk 0:01:00.3]} 36... Re8 {[%clk 0:00:51.5]} 37. Qf7 {[%clk 0:00:56.1]}
37... Re7 {[%clk 0:00:49.8]} 38. Qg8 {[%clk 0:00:53.4]} 38... d4 {[%clk
0:00:49.5]} 39. Rc4 {[%clk 0:00:36.9]} 39... Rd7 {[%clk 0:00:44.3]} 40. Qg3+
{[%clk 0:00:31.6]} 40... Kd5 {[%clk 0:00:42.3]} 41. Qd3 {[%clk 0:00:31.2]} 41...
Ke5 {[%clk 0:00:37.7]} 42. Rc1 {[%clk 0:00:28.9]} 42... Nc5 {[%clk 0:00:31.8]}
43. Re1+ {[%clk 0:00:27.8]} 43... Kd5 {[%clk 0:00:31.4]} 44. Qf3+ {[%clk
0:00:26.5]} 44... Kd6 {[%clk 0:00:30.7]} 45. Qf6+ {[%clk 0:00:26.7]} 45... Kd5
{[%clk 0:00:31]} 46. Re5+ {[%clk 0:00:25.8]} 46... Kc4 {[%clk 0:00:30.4]} 47.
Qf5 {[%clk 0:00:22.1]} 47... Rd5 {[%clk 0:00:18.8]} 48. b3+ {[%clk 0:00:20.9]}
48... Kc3 {[%clk 0:00:18.9]} 49. Rxd5 {[%clk 0:00:21.8]} 49... Nxd5 {[%clk
0:00:19]} 50. Qxd5 {[%clk 0:00:22.9]} 50... d3 {[%clk 0:00:20.4]} 51. Kf2 {[%clk
0:00:23.6]} 51... Kd2 {[%clk 0:00:18.6]} 52. h4 {[%clk 0:00:24.2]} 52... Na6
{[%clk 0:00:14]} 53. Qd4 {[%clk 0:00:20.9]} 53... Nc5 {[%clk 0:00:11.3]} 54. h5
{[%clk 0:00:21.7]} 54... Kc2 {[%clk 0:00:09.4]} 55. h6 {[%clk 0:00:22.1]} 55...
d2 {[%clk 0:00:08.8]} 56. Ke2 {[%clk 0:00:22.4]} 56... d1=Q+ {[%clk 0:00:08.7]}
57. Qxd1+ {[%clk 0:00:23.1]} 57... Kb2 {[%clk 0:00:09.9]} 58. h7 {[%clk
0:00:23.5]} 58... Ka3 {[%clk 0:00:11]} 59. h8=Q {[%clk 0:00:24.1]} 1-0